lending/lending_fUSD_20240110
["ID","MTS","AMOUNT","RATE_DAILY","PERIOD"]
[311049733,1704889872421,-174.40189324,0.00030684,2]
[311049734,1704889872430,-1609.93,0.00030684,2]
[311049735,1704889872439,-970.94,0.00030684,2]
[311049736,1704889872449,-500.0,0.00030684,2]
[311049737,1704889872458,-628.13,0.00030684,2]
[311049738,1704889872468,-657.91,0.00030684,2]
[311049739,1704889872477,-500.0,0.00030684,2]
[311049740,1704889872487,-348.67658048,0.00030684,2]
[311049741,1704889872496,-500.0,0.00030684,2]
[311049742,1704889872505,-500.0,0.00030684,2]
[311049743,1704889872515,-875.35,0.00030684,2]
[311049744,1704889872524,-500.0,0.00030684,2]
[311049745,1704889872533,-500.0,0.00030684,2]
[311049746,1704889872542,-500.0,0.00030684,2]
[311049747,1704889872552,-500.0,0.00030684,2]
[311049748,1704889872562,-300.0,0.00030684,2]
[311049749,1704889872571,-1080.66,0.00030684,2]
[311049750,1704889872581,-1260.41,0.00030684,2]
[311049751,1704889872591,-500.0,0.00030684,2]
[311049752,1704889872600,-500.0,0.00030684,2]
[311049753,1704889872609,-609.5,0.00030684,2]
[311049754,1704889872619,-1394.51,0.00030684,2]
[311049755,1704889872628,-500.0,0.00030684,2]
[311049756,1704889872638,-500.0,0.00030684,2]
[311049757,1704889872650,-500.0,0.00030684,2]
[311049758,1704889872659,-1329.05,0.00030684,2]
[311049759,1704889872668,-500.0,0.00030684,2]
[311049760,1704889872677,-1118.90224673,0.00030684,2]
[311049761,1704889872691,-3.84775327,0.00030684,2]
[311049762,1704889872700,-281.86554635,0.00030684,2]
[311049763,1704889872724,-218.13445365,0.00030684,2]
[311049764,1704889872733,-500.0,0.00030684,2]
[311049765,1704889872742,-191.78174635,0.00030684,2]
[311049766,1704889873022,-308.21825365,0.00030684,2]
[311049767,1704889873031,-611.47,0.00030684,2]
[311049768,1704889873040,-500.0,0.00030684,2]
[311049769,1704889873050,-588.72312915,0.00030684,2]
[311049770,1704889873059,-500.0,0.00030684,2]
[311049771,1704889873068,-1143.2,0.00030684,2]
[311049772,1704889873078,-500.0,0.00030684,2]
[311049773,1704889873087,-943.81,0.00030684,2]
[311049774,1704889873097,-75.21325493,0.00030684,2]
[311049775,1704889873137,-424.78674507,0.00030684,2]
[311049776,1704889873149,-676.64,0.00030684,2]
[311049777,1704889873159,-963.94,0.00030684,2]
[311049778,1704889873168,-587.29,0.00030684,2]
[311049779,1704889873178,-500.0,0.00030684,2]
[311049780,1704889873188,-500.0,0.00030684,2]
[311049781,1704889873198,-500.0,0.00030684,2]
[311049782,1704889873207,-500.0,0.00030684,2]
[311049783,1704889873216,-500.0,0.00030684,2]
[311049784,1704889873226,-500.0,0.00030684,2]
[311049785,1704889873235,-500.0,0.00030684,2]
[311049786,1704889873245,-738.26,0.00030684,2]
[311049787,1704889873254,-1081.53,0.00030684,2]
[311049788,1704889873263,-500.0,0.00030684,2]
[311049789,1704889873272,-1971.18,0.00030684,2]
[311049790,1704889873281,-753.11,0.00030684,2]
[311049791,1704889873290,-713.67,0.00030684,2]
[311049792,1704889873299,-500.0,0.00030684,2]
[311049793,1704889873309,-500.0,0.00030684,2]
[311049794,1704889873318,-500.0,0.00030684,2]
[311049795,1704889873327,-500.0,0.00030684,2]
[311049796,1704889873336,-592.26,0.00030684,2]
[311049797,1704889873345,-876.77,0.00030684,2]
[311049798,1704889873354,-1205.6,0.00030684,2]
[311049799,1704889873363,-786.11,0.00030684,2]
[311049800,1704889873372,-1405.05,0.00030684,2]
[311049801,1704889873381,-1357.22,0.00030684,2]
[311049802,1704889873390,-500.0,0.00030684,2]
[311049803,1704889873402,-817.66,0.00030684,2]
[311049804,1704889873411,-500.0,0.00030684,2]
[311049805,1704889873421,-500.0,0.00030684,2]
[311049806,1704889873430,-500.0,0.00030684,2]
[311049807,1704889873439,-515.91,0.00030684,2]
[311049808,1704889873449,-590.91,0.00030684,2]
[311049809,1704889873458,-500.0,0.00030684,2]
[311049810,1704889873467,-1328.98,0.00030684,2]
[311049811,1704889873476,-500.0,0.00030684,2]
[311049812,1704889873485,-564.69,0.00030684,2]
[311049813,1704889873494,-664.71,0.00030684,2]
[311049814,1704889873503,-1818.56,0.00030684,2]
[311049815,1704889873512,-500.0,0.00030684,2]
[311049816,1704889873521,-500.0,0.00030684,2]
[311049817,1704889873530,-500.0,0.00030684,2]
[311049818,1704889873539,-1359.78,0.00030684,2]
[311049819,1704889873548,-500.0,0.00030684,2]
[311049820,1704889873557,-1646.24,0.00030684,2]
[311049821,1704889873566,-34.95983277,0.00030684,2]
[311049822,1704889873580,-456.35152185,0.00030684,2]
[311049823,1704889873690,-8.68864538,0.00030684,2]
[311049824,1704889873700,-1205.85,0.00030684,2]
[311049825,1704889873709,-914.4,0.00030684,2]
[311049826,1704889873718,-1697.06,0.00030684,2]
[311049827,1704889873728,-999.71,0.00030684,2]
[311049828,1704889873737,-323.08797447,0.00030684,2]
[311049829,1704889873750,-594.92202553,0.00030684,2]
[311049830,1704889873759,-500.0,0.00030684,2]
[311049831,1704889873772,-416.05402807,0.00030684,2]
[311049832,1704889873783,-83.94597193,0.00030684,2]
[311049833,1704889873793,-500.0,0.00030684,2]
[311049834,1704889873802,-787.03,0.00030684,2]
[311049835,1704889873813,-510.16035458,0.00030684,2]
[311049836,1704889873845,-588.99961556,0.000294,2]
[311049837,1704889873856,-428.65800332,0.000294,2]
[311049838,1704889874481,-200.0,0.00024607,2]
[311049839,1704889874491,-333.96922861,0.000294,2]
[311049840,1704889874504,-517.67315251,0.000294,2]
[311049841,1704889874513,-1869.3,0.000294,2]
[311049842,1704889874523,-1869.3,0.000294,2]
[311049843,1704889874533,-1869.3,0.000294,2]
[311049844,1704889874543,-1869.3,0.000294,2]
[311049845,1704889874553,-1869.3,0.000294,2]
[311049846,1704889874564,-731.2273695,0.00029898,2]
[311049847,1704889874574,-150.0,0.00029911,2]
[311049848,1704889874584,-500.0,0.00030136,2]
[311049849,1704889874594,-821.65,0.00030136,2]
[311049850,1704889874604,-500.0,0.00030136,2]
[311049851,1704889874614,-500.0,0.00030136,2]
[311049852,1704889874624,-500.0,0.00030136,2]
[311049853,1704889874634,-500.0,0.00030136,2]
[311049854,1704889874644,-594.24,0.00030136,2]
[311049855,1704889874655,-500.0,0.00030136,2]
[311049856,1704889874666,-500.0,0.0003041,2]
[311049857,1704889874676,-84.20118367,0.0003041,2]
[311049858,1704889874767,-2610.12,0.00030136,2]
[311049859,1704889874778,-737.44881633,0.0003041,2]
[311049860,1704889874788,-500.0,0.0003041,2]
[311049861,1704889874798,-500.0,0.0003041,2]
[311049862,1704889874808,-500.0,0.0003041,2]
[311049863,1704889874819,-500.0,0.0003041,2]
[311049864,1704889874829,-594.24,0.0003041,2]
[311049865,1704889874838,-500.0,0.0003041,2]
[311049866,1704889874848,-731.2273695,0.00030647,2]
[311049867,1704889874858,-342.29964542,0.00030684,2]
[311049868,1704889874867,-504.79,0.00030684,2]
[311049869,1704889874877,-532.75,0.00030684,2]
[311049870,1704889874887,-500.0,0.00030684,2]
[311049871,1704889874899,-500.0,0.00030684,7]
[311049872,1704889874909,-500.0,0.00030684,2]
[311049873,1704889874919,-500.0,0.00030684,2]
[311049874,1704889874928,-1171.44,0.00030684,2]
[311049875,1704889874937,-1661.84,0.00030684,2]
[311049876,1704889874947,-500.0,0.00030684,2]
[311049877,1704889874956,-500.0,0.00030684,2]
[311049878,1704889874966,-742.53,0.00030684,2]
[311049879,1704889874976,-2042.32,0.00030684,2]
[311049880,1704889874986,-272.34655205,0.00030684,2]
[311049881,1704889874995,-500.0,0.00030684,2]
[311049882,1704889875005,-834.09,0.00030684,2]
[311049883,1704889875014,-518.43,0.00030684,2]
[311049884,1704889875024,-800.82,0.00030684,2]
[311049885,1704889875034,-745.31,0.00030684,2]
[311049886,1704889875043,-985.47,0.00030684,2]
[311049887,1704889875053,-500.0,0.00030684,2]
[311049888,1704889875062,-500.0,0.00030684,2]
[311049889,1704889875071,-733.93,0.00030684,2]
[311049890,1704889875081,-500.0,0.00030684,2]
[311049891,1704889875091,-500.0,0.00030684,2]
[311049892,1704889875101,-765.43,0.00030684,2]
[311049893,1704889875110,-500.0,0.00030684,2]
[311049894,1704889875120,-665.47,0.00030684,2]
[311049895,1704889875129,-591.35,0.00030684,2]
[311049896,1704889875139,-500.0,0.00030684,2]
[311049897,1704889875152,-1028.14,0.00030684,2]
[311049898,1704889875161,-1244.37,0.00030684,2]
[311049899,1704889875171,-928.42,0.00030684,2]
[311049900,1704889875180,-500.0,0.00030684,2]
[311049901,1704889875190,-1050.7,0.00030684,2]
[311049902,1704889875199,-500.0,0.00030684,2]
[311049903,1704889875209,-1005.39,0.00030684,2]
[311049904,1704889875219,-500.0,0.00030684,2]
[311049905,1704889875228,-892.35,0.00030684,4]
[311049906,1704889875238,-999.28,0.00030684,2]
[311049907,1704889875247,-500.0,0.00030684,2]
[311049908,1704889875257,-500.0,0.00030684,2]
[311049909,1704889875266,-500.0,0.00030684,2]
[311049910,1704889875276,-850.5,0.00030684,2]
[311049911,1704889875286,-913.67,0.00030684,2]
[311049912,1704889875296,-1307.7,0.00030684,2]
[311049913,1704889875305,-1840.01,0.00030684,2]
[311049914,1704889875315,-905.12,0.00030684,2]
[311049915,1704889875326,-1163.6,0.00030684,2]
[311049916,1704889875337,-627.63,0.00030684,2]
[311049917,1704889875347,-603.43,0.00030684,2]
[311049918,1704889875357,-1883.78,0.00030684,2]
[311049919,1704889875367,-895.28,0.00030684,2]
[311049920,1704889875377,-500.0,0.00030684,2]
[311049921,1704889875387,-1577.56,0.00030684,2]
[311049922,1704889875399,-1019.82,0.00030684,2]
[311049923,1704889875409,-727.88,0.00030684,2]
[311049924,1704889875419,-506.31,0.00030684,2]
[311049925,1704889875429,-1464.15,0.00030684,2]
[311049926,1704889875438,-500.0,0.00030684,2]
[311049927,1704889875448,-500.0,0.00030684,2]
[311049928,1704889875458,-500.0,0.00030684,2]
[311049929,1704889875467,-1533.05715064,0.00030684,2]
[311049930,1704889875483,-282.80682126,0.00030684,2]
[311049931,1704889875495,-1434.8160281,0.00030684,2]
[311049932,1704889875505,-469.80299644,0.00030684,2]
[311049933,1704889875517,-530.19700356,0.00030684,2]
[311049934,1704889875526,-500.0,0.00030684,2]
[311049935,1704889875536,-500.0,0.00030684,2]
[311049936,1704889875546,-369.70099624,0.00030684,2]
[311049937,1704889875567,-1177.37346487,0.000294,2]
[311049938,1704889875703,-171.61355998,0.00027802,2]
[311049939,1704889875714,-132.45119867,0.000294,2]
[311049940,1704889875738,-559.47533646,0.000294,2]
[311049941,1704889875748,-1869.3,0.000294,2]
[311049942,1704889875758,-1869.3,0.000294,2]
[311049943,1704889875769,-244.22466354,0.00030136,2]
[311049944,1704889875783,-255.77533646,0.00030136,2]
[311049945,1704889875794,-1512.68103838,0.0003041,2]
[311049946,1704889875805,-1096.64447718,0.0003041,2]
[311049947,1704889875827,-0.79448444,0.0003041,2]
[311049948,1704889875836,-500.0,0.0003041,2]
[311049949,1704889875847,-203.6224004,0.00030674,7]
[311049950,1704889875857,-544.13900376,0.00030684,2]
[311049951,1704889875867,-500.0,0.00030684,2]
[311049952,1704889875877,-856.61,0.00030684,2]
[311049953,1704889875887,-500.0,0.00030684,2]
[311049954,1704889875897,-909.57,0.00030684,2]
[311049955,1704889875909,-602.22,0.00030684,2]
[311049956,1704889875919,-1140.97,0.00030684,2]
[311049957,1704889875929,-313.06538381,0.00030684,2]
[311049958,1704889875939,-1267.63,0.00030684,2]
[311049959,1704889875948,-1134.59,0.00030684,2]
[311049960,1704889875958,-590.83,0.00030684,2]
[311049961,1704889875967,-500.0,0.00030684,2]
[311049962,1704889875977,-500.0,0.00030684,2]
[311049963,1704889875987,-695.54,0.00030684,2]
[311049964,1704889875997,-500.0,0.00030684,2]
[311049965,1704889876007,-616.05312027,0.00030684,2]
[311049966,1704889876016,-500.0,0.00030684,2]
[311049967,1704889876026,-1056.49,0.00030684,2]
[311049968,1704889876036,-1286.63,0.00030684,2]
[311049969,1704889876046,-875.47,0.00030684,2]
[311049970,1704889876056,-637.01956552,0.00030684,2]
[311049971,1704889876066,-842.77,0.00030684,2]
[311049972,1704889876076,-1089.56,0.00030684,2]
[311049973,1704889876086,-1790.92,0.00030684,2]
[311049974,1704889876095,-1125.79,0.00030684,2]
[311049975,1704889876105,-500.0,0.00030684,2]
[311049976,1704889876115,-500.0,0.00030684,2]
[311049977,1704889876125,-820.12,0.00030684,2]
[311049978,1704889876134,-690.21,0.00030684,2]
[311049979,1704889876144,-1130.12,0.00030684,2]
[311049980,1704889876156,-623.61,0.00030684,2]
[311049981,1704889876165,-500.0,0.00030684,2]
[311049982,1704889876175,-563.95,0.00030684,2]
[311049983,1704889876185,-1565.58,0.00030684,2]
[311049984,1704889876194,-562.08,0.00030684,2]
[311049985,1704889876204,-500.0,0.00030684,2]
[311049986,1704889876214,-816.86,0.00030684,2]
[311049987,1704889876223,-1119.94,0.00030684,2]
[311049988,1704889876233,-581.91,0.00030684,2]
[311049989,1704889876242,-500.0,0.00030684,2]
[311049990,1704889876252,-958.87,0.00030684,2]
[311049991,1704889876261,-1140.28,0.00030684,2]
[311049992,1704889876271,-500.0,0.00030684,2]
[311049993,1704889876281,-1407.81,0.00030684,2]
[311049994,1704889876291,-1581.48,0.00030684,2]
[311049995,1704889876301,-1320.63,0.00030684,2]
[311049996,1704889876311,-500.0,0.00030684,2]
[311049997,1704889876321,-867.86,0.00030684,2]
[311049998,1704889876331,-746.81,0.00030684,2]
[311049999,1704889876341,-713.77,0.00030684,2]
[311050000,1704889876351,-500.0,0.00030684,2]
[311050001,1704889876360,-500.0,0.00030684,2]
[311050002,1704889876370,-500.0,0.00030684,2]
[311050003,1704889876379,-819.53,0.00030684,2]
[311050004,1704889876389,-500.0,0.00030684,2]
[311050005,1704889876400,-500.0,0.00030684,2]
[311050006,1704889876410,-500.0,0.00030684,2]
[311050007,1704889876420,-159.78730652,0.00030684,2]
[311050008,1704889876674,-340.21269348,0.00030684,2]
[311050009,1704889876695,-184.10788404,0.00030684,2]
[311050010,1704889876707,-944.43211596,0.00030684,2]
[311050011,1704889876717,-192.56622346,0.00030684,2]
[311050012,1704889876726,-287.00166058,0.00030684,2]
[311050013,1704889876738,-1369.37833942,0.00030684,2]
[311050014,1704889876753,-500.0,0.00030684,2]
[311050015,1704889876763,-500.0,0.00030684,2]
[311050016,1704889876772,-500.0,0.00030684,2]
[311050017,1704889876782,-1094.14,0.00030684,2]
[311050018,1704889876801,-414.82388152,0.00030684,2]
[311050019,1704889876810,-219.80217313,0.00030684,2]
[311050020,1704889876822,-1020.98782687,0.00030684,2]
[311050021,1704889876831,-500.0,0.00030684,2]
[311050022,1704889876841,-500.0,0.00030684,2]
[311050023,1704889876851,-523.39,0.00030684,2]
[311050024,1704889876861,-653.68,0.00030684,2]
[311050025,1704889876870,-504.16277646,0.00030684,2]
[311050026,1704889876880,-500.0,0.00030684,2]
[311050027,1704889876889,-25.49459667,0.00030684,2]
[311050028,1704889876904,-474.50540333,0.00030684,2]
[311050029,1704889876913,-500.0,0.00030684,2]
[311050030,1704889876922,-500.0,0.00030684,2]
[311050031,1704889876932,-500.0,0.00030684,2]
[311050032,1704889876941,-500.0,0.00030684,2]
[311050033,1704889876950,-2052.57,0.00030684,2]
[311050034,1704889876959,-988.35,0.00030684,2]
[311050035,1704889876968,-500.0,0.00030684,2]
[311050036,1704889876977,-1584.36,0.00030684,2]
[311050037,1704889876986,-5014.12,0.00030684,2]
[311050038,1704889876995,-1719.69459668,0.00030684,2]
[311050039,1704889877007,-179.48540332,0.00030684,2]
[311050040,1704889877017,-78.03103556,0.00030684,2]
[311050041,1704889877497,-1869.3,0.000294,2]
[311050042,1704889877507,-402.05,0.000294,2]
[311050043,1704889877518,-1467.25,0.000294,2]
[311050044,1704889877528,-1869.3,0.000294,2]
[311050045,1704889877538,-1869.3,0.000294,2]
[311050046,1704889877547,-732.07292126,0.000294,2]
[311050047,1704889877629,-1137.22707874,0.000294,2]
[311050048,1704889877639,-1869.3,0.000294,2]
[311050049,1704889877651,-6850.49141151,0.000299,2]
[311050050,1704889877660,-500.0,0.00030136,2]
[311050051,1704889877670,-500.0,0.0003041,2]
[311050052,1704889877679,-491.65896444,0.00030684,2]
[311050053,1704889877689,-1029.31,0.00030684,2]
[311050054,1704889877698,-1767.62,0.00030684,2]
[311050055,1704889877707,-500.0,0.00030684,2]
[311050056,1704889877717,-720.85,0.00030684,2]
[311050057,1704889877727,-548.17,0.00030684,2]
[311050058,1704889877736,-500.0,0.00030684,2]
[311050059,1704889877745,-1269.38,0.00030684,2]
[311050060,1704889877755,-500.0,0.00030684,2]
[311050061,1704889877765,-500.0,0.00030684,2]
[311050062,1704889877775,-500.0,0.00030684,2]
[311050063,1704889877785,-1861.28,0.00030684,2]
[311050064,1704889877795,-500.0,0.00030684,2]
[311050065,1704889877805,-2772.99,0.00030684,2]
[311050066,1704889877816,-501.62,0.00030684,2]
[311050067,1704889877826,-500.0,0.00030684,2]
[311050068,1704889877835,-1435.01,0.00030684,2]
[311050069,1704889877845,-1211.96,0.00030684,2]
[311050070,1704889877855,-1059.41,0.00030684,2]
[311050071,1704889877864,-500.0,0.00030684,2]
[311050072,1704889877874,-1482.89,0.00030684,2]
[311050073,1704889877883,-500.0,0.00030684,2]
[311050074,1704889877892,-695.19,0.00030684,2]
[311050075,1704889877903,-1046.11,0.00030684,2]
[311050076,1704889877913,-1778.97,0.00030684,2]
[311050077,1704889877922,-500.0,0.00030684,2]
[311050078,1704889877931,-773.9,0.00030684,2]
[311050079,1704889877941,-832.16,0.00030684,2]
[311050080,1704889877950,-500.0,0.00030684,2]
[311050081,1704889877960,-614.88,0.00030684,2]
[311050082,1704889877969,-500.0,0.00030684,2]
[311050083,1704889877979,-5888.52,0.00030684,2]
[311050084,1704889877988,-763.1,0.00030684,2]
[311050085,1704889877998,-654.36,0.00030684,2]
[311050086,1704889878008,-1152.96,0.00030684,2]
[311050087,1704889878018,-500.0,0.00030684,2]
[311050088,1704889878028,-1741.64,0.00030684,2]
[311050089,1704889878037,-1510.47,0.00030684,2]
[311050090,1704889878046,-887.3,0.00030684,2]
[311050091,1704889878056,-500.0,0.00030684,2]
[311050092,1704889878065,-772.26,0.00030684,2]
[311050093,1704889878074,-500.0,0.00030684,2]
[311050094,1704889878084,-937.08,0.00030684,2]
[311050095,1704889878094,-5991.21,0.00030684,2]
[311050096,1704889878103,-4646.78,0.00030684,2]
[311050097,1704889878113,-500.0,0.00030684,2]
[311050098,1704889878122,-554.31,0.00030684,2]
[311050099,1704889878131,-841.86,0.00030684,2]
[311050100,1704889878141,-500.0,0.00030684,2]
[311050101,1704889878152,-500.0,0.00030684,2]
[311050102,1704889878161,-500.0,0.00030684,2]
[311050103,1704889878170,-500.0,0.00030684,2]
[311050104,1704889878179,-227.49077635,0.00030684,2]
[311050105,1704889878193,-957.87922365,0.00030684,2]
[311050106,1704889878203,-500.0,0.00030684,2]
[311050107,1704889878213,-500.0,0.00030684,2]
[311050108,1704889878223,-500.0,0.00030684,2]
[311050109,1704889878233,-3528.22,0.00030684,2]
[311050110,1704889878242,-390.53790041,0.00030684,2]
[311050111,1704889878254,-109.46209959,0.00030684,2]
[311050112,1704889878263,-184.96704011,0.00030684,2]
[311050113,1704889878397,-685.11295989,0.00030684,2]
[311050114,1704889878408,-500.0,0.00030684,2]
[311050115,1704889878418,-1578.79,0.00030684,2]
[311050116,1704889878427,-500.0,0.00030684,2]
[311050117,1704889878437,-500.0,0.00030684,2]
[311050118,1704889878447,-728.3,0.00030684,2]
[311050119,1704889878457,-168.42847101,0.00030684,2]
[311050120,1704889878470,-331.57152899,0.00030684,2]
[311050121,1704889878480,-500.0,0.00030684,2]
[311050122,1704889878489,-1773.5,0.00030684,2]
[311050123,1704889878498,-500.0,0.00030684,2]
[311050124,1704889878507,-2870.83247102,0.00030684,2]
[311050125,1704889878521,-155.88752898,0.00030684,2]
[311050126,1704889878530,-1285.29,0.00030684,2]
[311050127,1704889878539,-716.54,0.00030684,2]
[311050128,1704889878548,-1101.65,0.00030684,2]
[311050129,1704889878557,-313.01416571,0.00030684,2]
[311050130,1704889878585,-972.1,0.00027397,10]
[311050131,1704889878594,-186.98583429,0.00030684,2]
[311050132,1704889878603,-1140.90299958,0.00030684,2]
[311050133,1704889878944,-837.29649,0.00029097,2]
[311050134,1704889879724,-23062.70351,0.00029097,2]
[311050135,1704889879734,-1000.0,0.00029299,2]
[311050136,1704889879743,-500.0,0.00030136,2]
[311050137,1704889879754,-500.0,0.00030136,2]
[311050138,1704889879763,-500.0,0.00030136,2]
[311050139,1704889879773,-634.96,0.0003041,2]
[311050140,1704889879782,-500.0,0.0003041,2]
[311050141,1704889879793,-270.66700042,0.00030684,2]
[311050142,1704889879803,-500.0,0.00030684,2]
[311050143,1704889879811,-500.0,0.00030684,2]
[311050144,1704889879821,-500.0,0.00030684,2]
[311050145,1704889879830,-624.94,0.00030684,2]
[311050146,1704889879840,-500.0,0.00030684,2]
[311050147,1704889879851,-6173.33,0.00030684,2]
[311050148,1704889879860,-2083.83,0.00030684,2]
[311050149,1704889879869,-1324.68,0.00030684,2]
[311050150,1704889879878,-500.0,0.00030684,2]
[311050151,1704889879888,-4303.97,0.00030684,2]
[311050152,1704889879897,-383.43357324,0.00030684,2]
[311050153,1704889879912,-500.0,0.00030684,2]
[311050154,1704889879921,-2350.26,0.00030684,2]
[311050155,1704889879930,-732.88,0.00030684,2]
[311050156,1704889879939,-564.55,0.00030684,2]
[311050157,1704889879948,-500.0,0.00030684,2]
[311050158,1704889879957,-174.35952913,0.00030684,2]
[311050159,1704889879966,-726.0,0.00030684,2]
[311050160,1704889879975,-1645.44,0.00030684,2]
[311050161,1704889879984,-1153.48,0.00030684,2]
[311050162,1704889879993,-1150.36,0.00030684,2]
[311050163,1704889880002,-3451.98,0.00030684,2]
[311050164,1704889880012,-500.0,0.00030684,2]
[311050165,1704889880021,-1155.38,0.00030684,2]
[311050166,1704889880030,-500.0,0.00030684,2]
[311050167,1704889880040,-938.72,0.00030684,2]
[311050168,1704889880050,-7883.65,0.00030684,2]
[311050169,1704889880059,-768.72,0.00030684,2]
[311050170,1704889880069,-500.0,0.00030684,2]
[311050171,1704889880078,-500.0,0.00030684,2]
[311050172,1704889880087,-500.0,0.00030684,2]
[311050173,1704889880097,-500.0,0.00030684,2]
[311050174,1704889880107,-1000.0,0.00030684,2]
[311050175,1704889880116,-856.12,0.00030684,2]
[311050176,1704889880126,-648.04,0.00030684,2]
[311050177,1704889880136,-656.73,0.00030684,2]
[311050178,1704889880145,-500.0,0.00030684,2]
[311050179,1704889880158,-1526.49,0.00030684,2]
[311050180,1704889880167,-2014.22,0.00030684,2]
[311050181,1704889880177,-6740.64411037,0.00030684,2]
[311050182,1704889880190,-673.12588963,0.00030684,2]
[311050183,1704889880199,-528.39,0.00030684,2]
[311050184,1704889880209,-500.0,0.00030684,2]
[311050185,1704889880218,-633.49,0.00030684,2]
[311050186,1704889880227,-6675.82747143,0.00030684,2]
[311050187,1704889880260,-4840.82252857,0.00030684,2]
[311050188,1704889880270,-1595.22,0.00030684,2]
[311050189,1704889880279,-524.73,0.00030684,2]
[311050190,1704889880288,-589.39,0.00030684,2]
[311050191,1704889880297,-805.21,0.00030684,2]
[311050192,1704889880306,-500.0,0.00030684,2]
[311050193,1704889880315,-8149.55,0.00030684,2]
[311050194,1704889880324,-500.0,0.00030684,2]
[311050195,1704889880333,-500.0,0.00030684,2]
[311050196,1704889880342,-11416.58,0.00030684,2]
[311050197,1704889880352,-1280.71,0.00030684,2]
[311050198,1704889880361,-500.0,0.00030684,2]
[311050199,1704889880370,-500.0,0.00030684,2]
[311050200,1704889880379,-500.0,0.00030684,2]
[311050201,1704889880388,-500.0,0.00030684,2]
[311050202,1704889880398,-500.0,0.00030684,2]
[311050203,1704889880409,-2455.53,0.00030684,2]
[311050204,1704889880418,-1385.09,0.00030684,2]
[311050205,1704889880427,-500.0,0.00030684,2]
[311050206,1704889880436,-500.0,0.00030684,2]
[311050207,1704889880445,-500.0,0.00030684,2]
[311050208,1704889880454,-3327.42,0.00030684,2]
[311050209,1704889880464,-2727.58251267,0.00030684,2]
[311050210,1704889882191,-537.76,0.00030136,2]
[311050211,1704889882202,-403.72748733,0.00030684,2]
[311050212,1704889882213,-500.0,0.00030684,2]
[311050213,1704889882223,-20167.96,0.00030684,2]
[311050214,1704889882234,-1159.27,0.00030684,2]
[311050215,1704889882244,-6276.18,0.00030684,2]
[311050216,1704889882255,-500.0,0.00030684,2]
[311050217,1704889882265,-672.91,0.00030684,2]
[311050218,1704889882276,-718.32012678,0.00030684,2]
[311050219,1704889882298,-141.39987322,0.00030684,2]
[311050220,1704889882310,-753.37,0.00030684,2]
[311050221,1704889882321,-1391.94,0.00030684,2]
[311050222,1704889882334,-4571.3,0.00030684,2]
[311050223,1704889882344,-356.36888413,0.00030684,2]
[311050224,1704889883224,-588.04111587,0.00030684,2]
[311050225,1704889883234,-4631.13021937,0.00030684,2]
[311050226,1704889883246,-59.40978063,0.00030684,2]
[311050227,1704889883256,-495.27210627,0.00030684,2]
[311050228,1704889883267,-1043.52,0.00030684,2]
[311050229,1704889883278,-510.31594865,0.00030684,2]
[311050230,1704889883288,-500.0,0.00030684,2]
[311050231,1704889883299,-31401.67,0.00030684,2]
[311050232,1704889883309,-2051.79,0.00030684,2]